Cogmind - Beta 15 @@@ ROGUE MODE // 2025.05.31 @ 00:09:06 Player: Peck-R-INE-1 Result: Destroyed by D-53 Grenadier with Mini Grenade Launcher Performance ------------- Evolutions (0) 0 Regions Visited (2) 400 Robots Destroyed (8) 40 Value Destroyed (217) 217 Prototype IDs (0) 0 Alien Tech Used (0) 0 Bonus (0) 0 TOTAL SCORE: 657 Bonus ------- None Cogmind --------- Core Integrity 0/250 Matter 300/300 Energy 100/100 System Corruption 0% Temperature Cool (0) Movement Walking (120) Location -10/Mines Parts ------- > --- POWER (1) -------- (None) > --- PROPULSION (2) --- Aluminum Leg > --- UTILITY (2) ------ Small Storage Unit Seismic Detector > --- WEAPON (2) ------- Small Laser > --- INVENTORY (8) ---- Aluminum Leg Particle Gun Peak State ------------ > --- POWER ------------ Light Ion Engine > --- PROPULSION ------- Aluminum Leg Aluminum Leg > --- UTILITY ---------- Small Storage Unit Seismic Detector > --- WEAPON ----------- Small Laser Assault Rifle > --- INVENTORY -------- (None) [Rating: 7] Favorites ----------- Power Light Ion Engine Engine Light Ion Engine Propulsion Aluminum Leg Leg Aluminum Leg Utility Seismic Detector Device Seismic Detector Storage Small Storage Unit Weapon Small Laser Energy Gun Small Laser Ballistic Gun Assault Rifle Build | -11 -10 -10 ------- Run | Yrd Mat Min Slots Evolved . | . . . Power . | . . . Propulsion . | . . . Utility . | . . . Weapon . | . . . Parts Attached 8 | 6 1 1 Power 1 | 1 . . Engine 1 | 1 . . Core . | . . . Reactor . | . . . Propulsion 3 | 2 . 1 Treads . | . . . Leg 3 | 2 . 1 Wheel . | . . . Hover . | . . . Flight . | . . . Utility 2 | 1 1 . Device 1 | 1 . . Storage 1 | . 1 . Processor . | . . . Hackware . | . . . Protection . | . . . Artifact . | . . . Weapon 2 | 2 . . Energy Gun 1 | 1 . . Energy Cannon . | . . . Ballistic Gun 1 | 1 . . Ballistic Cannon . | . . . Launcher . | . . . Special Weapon . | . . . Impact Weapon . | . . . Slashing Weapon . | . . . Piercing Weapon . | . . . Special Melee Weapon . | . . . Unidentified Prototypes . | . . . Parts Lost 3 | . . 3 Power 1 | . . 1 Propulsion 1 | . . 1 Utility . | . . . Weapon 1 | . . 1 Highest Loss Streak 3 | . . 3 To Critical Strikes . | . . . Average Backups . | 1 . 1 Power . | . . . Propulsion . | . . . Utility . | . . . Weapon . | . . . Tool/Special . | . . . Unused Backups 1 | . . 1 Power . | . . . Propulsion . | . . . Utility . | . . . Weapon 1 | . . 1 Tool/Special . | . . . Average Slot Usage (%) 96 | . 95 97 Engine 13 | . 14 13 Leg 27 | . 28 27 Device 14 | . 14 14 Storage 11 | . 10 14 Energy Gun 14 | . 14 14 Ballistic Gun 13 | . 14 13 Peak Build Rating 7 | 6 7 7 Average Rating 6 | 4 6 6 On Entrance 4 | . 6 7 Naked Turns . | . . . Heaviest Build 12 | 7 12 12 Greatest Support 20 | 20 20 20 Greatest Overweight (x) . | . . . Average Overweight (x) . | . . . Largest Inventory Capacity 8 | 5 8 8 Average Capacity 7 | 5 7 8 Most Carried 4 | 4 1 2 Average Carried . | 1 . 1 Final Capacity 8 | 5 8 8 Final Carried 2 | 1 . 2 Class Distribution -------------------- 100% | Mutant Dominant Class ---------------- Mutant | -10/Materials Mutant | -10/Mines Resources | -11 -10 -10 ----------- Run | Yrd Mat Min Matter Collected 373 | 230 33 110 Remotely . | . . . Salvage Created 244 | 29 46 169 Parts 15 | 4 5 6 Haulers Intercepted . | . . . Recyclers Shooed . | . . . Parts Field Recycled . | . . . Retrieved Matter . | . . . Parts Self-Destructed . | . . . Prevented . | . . . Kills | -11 -10 -10 ------- Run | Yrd Mat Min Combat Hostiles Destroyed 4 | . . 4 Guns 4 | . . 4 Classes Destroyed 4 | 1 2 1 Tunneler 1 | 1 . . Operator 1 | . 1 . Watcher 2 | . 2 . Grunt 4 | . . 4 Best Kill Streak 3 | 1 1 3 Combat Bots Only 3 | . . 3 Max Kills in Single Turn 1 | 1 1 1 Gunslinging . | . . . Exploded . | . . . Melee . | . . . Uniques/NPCs Destroyed . | . . . Combat | -11 -10 -10 -------- Run | Yrd Mat Min Hostile Shots Fired 38 | . 1 37 Missed 5 | . . 5 Hits 33 | . 1 32 Projectile 33 | . 1 32 AOE 8 | . . 8 Damage Taken 623 | . 17 606 Core 269 | . . 269 Absorbed by Shields . | . . . Core Remaining (%) 100 | 100 . . Volleys Fired 31 | 5 10 16 Largest 2 | 2 2 2 Hottest 60 | 60 60 60 Shots Fired 62 | 10 20 32 Gun 62 | 10 20 32 Cannon . | . . . Launcher . | . . . Special . | . . . Kinetic 31 | 5 10 16 Thermal 31 | 5 10 16 Explosive . | . . . Electromagnetic . | . . . Robot Hit Streak 10 | 4 5 10 Robot Miss Streak 4 | 2 4 2 Penetration Max . | . . . Secondary Targets 1 | . . 1 Max Gunslinging Chain 1 | . . 1 Shots Hit Robots 43 | 6 10 27 Core Hits 15 | 2 4 9 Critical Kills . | . . . Critical Parts Destroyed . | . . . Critical Strikes . | . . . Melee Attacks . | . . . Impact . | . . . Slashing . | . . . Piercing . | . . . Sneak Attacks . | . . . Combat Hostiles . | . . . Follow-up Attacks . | . . . Damage Inflicted 525 | 91 124 310 Guns 525 | 91 124 310 Cannons . | . . . Explosions . | . . . Melee . | . . . Ramming . | . . . Kinetic 304 | 59 80 165 Thermal 221 | 32 44 145 Explosive . | . . . Electromagnetic . | . . . Impact . | . . . Slashing . | . . . Piercing . | . . . Highest Corruption . | . . . Average Corruption . | . . . Corruption Purged . | . . . Corruption Blocked . | . . . Overload Shots . | . . . Overflow Damage . | . . . Projectiles . | . . . Explosions . | . . . Melee . | . . . Knockbacks . | . . . Impact . | . . . Kinetic . | . . . Secondary . | . . . Self-Inflicted Damage . | . . . Shots . | . . . Rammed . | . . . Targets Rammed . | . . . Kicked . | . . . Crushed . | . . . Highest Temperature 90 | . . 90 Average Temperature 45 | . . 45 Received Heat Transfer 156 | . 9 147 Siege Activations . | . . . Martial Activations . | . . . Shielding Activations . | . . . Robots Disrupted . | . . . Combat Hostiles . | . . . Robots Corrupted . | . . . Combat Hostiles . | . . . Parts Fried . | . . . Impact Corruptions . | . . . Robots Melted . | . . . Combat Hostiles . | . . . Parts Melted . | . . . Heat Transferred 525 | 75 100 350 Parts Sabotaged . | . . . Parts Stolen . | . . . Parts Stripped . | . . . Power Chain Reactions . | . . . Alert | -11 -10 -10 ------- Run | Yrd Mat Min Maximum Alert Level . | . . . Low Security (%) 100 | 100 100 100 Level 1 . | . . . Level 2 . | . . . Level 3 . | . . . Level 4 . | . . . Level 5 . | . . . High Security . | . . . Max Security . | . . . Peak Influence 71 | 5 8 71 Initial 3 | . 3 1 Average 14 | . 1 38 Influence Increases 129 | 5 24 100 Destroy 0b10 Robot/C 80 | . . 80 Destroy 0b10 Robot/NC 20 | 5 15 . Destroy Leader 24 | . 4 20 Successful Hack 5 | . 5 . Influence Decreases 129 | . 24 105 Entered New Map 6 | . 2 4 Time Decay 102 | . 22 80 Lost Part 21 | . . 21 Squads Dispatched 1 | . 1 . Investigation . | . . . Extermination . | . . . Reinforcement 1 | . 1 . Assault . | . . . Garrison . | . . . Intercept . | . . . Searches Triggered . | . . . Construction Impeded . | . . . Haulers Reinforced . | . . . Active Scanning Responses . | . . . Cargo Convoy Interrupts . | . . . Stealth | -11 -10 -10 --------- Run | Yrd Mat Min Distress Signals . | . . . Communications Jammed . | . . . Distress Signals . | . . . Times Spotted 18 | . 7 11 Peak Tracking Total 7 | . 2 7 Tactical Retreats . | . . . Traps | -11 -10 -10 ------- Run | Yrd Mat Min Traps Triggered . | . . . Indirectly . | . . . Trap Hack Attempts . | . . . Triggered . | . . . Disarmed . | . . . Reprogrammed . | . . . Reused . | . . . Traps Extracted . | . . . Installed . | . . . Triggered . | . . . Machines | -11 -10 -10 ---------- Run | Yrd Mat Min Machines Disabled . | . . . Max in Single Turn . | . . . Machines Repaired . | . . . Machines Dismantled . | . . . Machines Sabotaged . | . . . Overloaded Fab Kills . | . . . Hacking | -11 -10 -10 --------- Run | Yrd Mat Min Machines Accessed 1 | . 1 . Terminals 1 | . 1 . Fabricators . | . . . Repair Stations . | . . . Recycling Units . | . . . Scanalyzers . | . . . Garrison Access . | . . . Total Hacks 3 | . 3 . Successful 2 | . 2 . Failed 1 | . 1 . Catastrophic . | . . . Database Lockouts . | . . . Manual 1 | . 1 . Terminals 3 | . 3 . Fabricators . | . . . Repair Stations . | . . . Recycling Units . | . . . Scanalyzers . | . . . Garrison Access . | . . . Terminal Hacks 2 | . 2 . Branch Access Points 1 | . 1 . Hauler Manifests 1 | . 1 . Fabricator Hacks . | . . . Repair Station Hacks . | . . . Recycling Unit Hacks . | . . . Scanalyzer . | . . . Garrison Access Hacks . | . . . Unauthorized Hacks . | . . . Terminals . | . . . Fabricators . | . . . Repair Stations . | . . . Recycling Units . | . . . Scanalyzers . | . . . Garrison Access . | . . . Data Cores Recovered . | . . . Used . | . . . Hacking Detections . | . . . Full Trace Events . | . . . Feedback Events . | . . . Feedback Blocked . | . . . Robot Schematics Acquired . | . . . Robots Built . | . . . Authchips . | . . . Time . | . . . Total Robot Build Rating . | . . . Part Schematics Acquired . | . . . Parts Built . | . . . Authchips . | . . . Time . | . . . Total Part Build Rating . | . . . Parts Repaired . | . . . Time . | . . . Parts Recycled . | . . . Recycled Matter . | . . . Retrieved Matter . | . . . Retrieved Components . | . . . Parts Scanalyzed . | . . . Part Schematics Acquired . | . . . Parts Damaged . | . . . Bothacking | -11 -10 -10 ------------ Run | Yrd Mat Min Used RIF Installer . | . . . Robots Hacked . | . . . Non-combat . | . . . Combat . | . . . Robot Hacks Applied . | . . . Relay Couplers Released . | . . . Fabnet Peak Effective % . | . . . Robots Rewired . | . . . Allies Hacked . | . . . Hacks Repelled . | . . . Allies | -11 -10 -10 -------- Run | Yrd Mat Min Total Allies . | . . . Largest Group . | . . . Highest-Rated Group . | . . . Highest-Rated Ally . | . . . Total Orders . | . . . Ally Attacks . | . . . Total Damage . | . . . Kills . | . . . Allies Corrupted . | . . . Allies Melted . | . . . Intel | -11 -10 -10 ------- Run | Yrd Mat Min Active Infowar (turns) 459 | 2 279 178 Seismic 459 | 2 279 178 Robot Analysis Total . | . . . Derelict Logs Recovered . | . . . Drone Launches . | . . . Drone Recoveries . | . . . Exploration | -11 -10 -10 ------------- Run | Yrd Mat Min Turns Passed 532 | 75 279 178 Spaces Moved 352 | 46 205 101 Core 11 | 11 . . Treads . | . . . Legs 341 | 35 205 101 Wheels . | . . . Hover . | . . . Flight . | . . . Fastest Speed 50 | 50 120 120 Average Speed 117 | 103 120 120 Slowest Speed 120 | 120 120 120 Overloaded Moves . | . . . Propulsion Burnouts . | . . . Robots Hopped . | . . . Potential Cave-ins . | . . . Cave-ins Triggered . | . . . Exploration Rate (%) 25 | 3 33 39 Regions Visited 2 Branch Regions 1 Pre-discovered Areas . | . . . Known Exits Taken 1 | . 1 . Unknown Exits Taken 1 | 1 . . Scrap Searched 1 | . . 1 Spaces Dug . | . . . Terrain Destroyed . | . . . Melee . | . . . Projectile . | . . . AOE . | . . . Terrain Rammed . | . . . Walls Destroyed . | . . . Machines Disabled . | . . . Actions | -11 -10 -10 --------- Run | Yrd Mat Min Total 406 | 63 218 125 Wait 10 | 1 3 6 Move 350 | 45 204 101 Hop . | . . . Pick Up 7 | 6 . 1 Fast Attach 1 | 1 . . Attach 6 | 5 1 . Detach . | . . . Swap 1 | . . 1 Drop . | . . . Fire 31 | 5 10 16 Melee . | . . . Ram . | . . . Kick . | . . . Crush . | . . . Escape Stasis . | . . . Rewire . | . . . Trap . | . . . Miscellaneous . | . . . Route ------- -11/Scrapyard -10/Materials -10/Mines History --------- Turn | Location | Event 4 | -11/Scrapyard | Discovered new exit (range 15) 76 | -11/Scrapyard | Entered Materials 77 | -10/Materials | Met a group of wandering Federalists 80 | -10/Materials | Identified exit to Mines 313 | -10/Materials | Build established: Mutant 355 | -10/Materials | Entered Mines 517 | -10/Mines | Assembled infested the area 522 | -10/Mines | Assisted by a Guerilla fighting off Assembled 528 | -10/Mines | Core integrity fell below 50% 532 | -10/Mines | Core integrity fell below 20% 533 | -10/Mines | Destroyed by D-53 Grenadier with Mini Grenade Launcher Last Messages --------------- 00525_ D-53 Grenadier unfolds itself. 00525_ Assault Rifle destroyed. 00525_ Lgt. Ion Engine destroyed. 00525_ T-07 Excavator destroyed. 00526_ K-01 Serf collects debris. 00527_ I2-Y64(h): "I'll hold them off! Go on ahead or try to find another way!" 00529_ Aluminum Leg destroyed. 00529_ HV Slug penetrates S-10 Pest. 00529_ S-10 Pest suffers critical hit (Destroy). 00529_ S-10 Pest destroyed. 00529_ HV Slug penetrates K-01 Serf. 00530_ U-05 Engineer lays Concrete. 00531_ S-10 Pest destroyed. 00531_ K-01 Serf collects debris. 00531_ U-05 Engineer lays Concrete. 00532_ The unstable cave ceiling collapses. 00532_ K-01 Serf destroyed. 00532_ HV Slug penetrates Wall. 00532_ U-05 Engineer lays Concrete. Map ----- +----------------------------------------------------+ | ?????????????????????????????????????????????????? | | ?????????????????????????????????????????????????? | | ?????????????????????????????????????????????????? | | ?????????????????????#?????????###???????????????? | | ????????????????????? ######??# ##??????????????? | | ?????????????????????? ### #??????????????? | | ?????????????????????? #??????????????? | | ?????????????????????? ???????????????? | | ??????????????????????? ????????????????? | | ?????????????????#????## ?????????????????? | | ????????????????? ????? ??????????????????? | | ????????????????# ????? #??????????????????? | | ????????????????# ?????# ##?????????????????? | | ??????????????### ?????# #?????????????????? | | ?????????????## ????## #?????????????????? | | ???????????### ????# #?????????????????? | | ??????????## ????# #?????????????????? | | ?????#????? ????# ##?????????????????? | | ????# ???? #####u ##?????????????????? | | ??????? ???# ; #?????????????????? | | ??????????# ## ##????????????????? | | ?????????????#% d s s #######??????????? | | ?????????????#" d s k ##?????????? | | ?????????????# # #?????????? | | ?????????????# u ##????????? | | ???????? # =@ ## ####?????? | | ?????? ?## %! #### ##????? | | ??????########???###### # ## ##??## ###??? | | ??????????????????????###h ## ##????# ##?? | | ????????????????????????;%=$ #????## ##? | | ???????????????????????? ???## #? | | ??????????????????????? ???# #? | | ??????????????????????? s % ??# #? | | ??????????????????????? #?## #### #? | | ??????????????????????? ##??##### ##??# #? | | ??????????????????????? ##???????# #???# #? | | ??????????????????????? #????????# #???# ## | | ??????????????????????? #????????# #???# | | ??????????????????????? #????????# #???# !% | | ??????????????????????? #?????????# #???### # | | ??????????????????????? ???????????# #?????# # | | ???????????????????????????????????????# ??????# # | | ???????????????????????????????????????# ??????# # | | ????????????????????????????????????????#??#??## # | | ???????????????????????????????????????????# ## # | | ???????????????????????????????????????????# ## | | ???????????????????????????????????????????#### #? | | ??????????????????????????????????????????????# #? | | ??????????????????????????????????????????????# #? | | ??????????????????????????????????????????????# #? | +----------------------------------------------------+ Best States ------------- Heat Dissipation 25 Energy Generation 10 Energy Capacity 125 Matter Stores 300 Matter Capacity 300 Sight Range 16 Terrain Scan Density 10 Evasion (%) 55 Item Schematics ----------------- None Robot Schematics ------------------ None Fabricated ------------ Nothing Repaired ---------- Nothing Alien Tech Used ----------------- None Achievements -------------- None Challenges ------------ None Game ------ Seed NetworkTeslaGenerator Manual? 0 Play Time 00:10:25 Cumulative 34.5 hours Start 2025.05.31 @ 00:00:50 End 2025.05.31 @ 00:09:06 Sessions 1 Manual Loads 0 Difficulty Rogue Special Mode None Game No. 28 Rogue 28 Adventurer 0 Explorer 0 Win Type - Total 0 Types 0/0/0/0/0/0/0/0/0/0 Lore% 11 Gallery% 25 Achievement% 27 Wizard Run 0 Options --------- Layout 1 ASCII 0 Keyboard 0 Movement Mouse Keybinds 0 Fullscreen 2 Font 32/SmallcapsGlow Map View 77x35 Zoom Use 0% Tactical HUD 1 Map Filters NONE Filters NONE Steam 1 RUN: 5fd0c438-5224-407c-a44c-77ce324e6321